Cogmind - Beta 13 X1 @@@ ROGUE MODE // 2023.06.25 @ 09:05:04 Player: JackNine Result: Destroyed by MJ-M8Q(R) with Subdweller Laser Performance ------------- Evolutions (0) 0 Regions Visited (2) 400 Robots Destroyed (32) 160 Value Destroyed (850) 850 Prototype IDs (2) 40 Alien Tech Used (0) 0 Bonus (0) 0 TOTAL SCORE: 1450 Bonus ------- None Cogmind --------- Core Integrity 0/250 Matter 263/300 Energy 100/100 System Corruption 8% Temperature Cool (27) Movement Rolling (80) Location -10/Subcaves Parts ------- > --- POWER (1) -------- (None) > --- PROPULSION (2) --- Wheel > --- UTILITY (2) ------ (None) > --- WEAPON (2) ------- Subdweller Laser Barrage Gun > --- INVENTORY (5) ---- Subdweller Monowheel Subdweller Laser Barrage Gun Peak State ------------ > --- POWER ------------ Ion Engine > --- PROPULSION ------- Compact Wheel Compact Wheel > --- UTILITY ---------- Scrap Shield > --- WEAPON ----------- Battle Rifle Barrage Gun > --- INVENTORY -------- Wheel Subdweller Monowheel Light Assault Rifle Light Assault Rifle Mining Claw [Rating: 12] Favorites ----------- Power Ion Engine Engine Ion Engine Propulsion Compact Wheel Treads Light Treads Wheel Compact Wheel Utility Medium Storage Unit Storage Medium Storage Unit Protection Scrap Shield Weapon EM Pulse Gun Energy Gun EM Pulse Gun Ballistic Gun Barrage Gun Special Weapon Multitool Slashing Weapon Mining Claw Build | -11 -10 -10 ------- Run | Jun Mat Sub Slots Evolved . | . . . Power . | . . . Propulsion . | . . . Utility . | . . . Weapon . | . . . Parts Attached 43 | 6 9 28 Power 3 | 1 1 1 Engine 3 | 1 1 1 Core . | . . . Reactor . | . . . Propulsion 6 | 2 1 3 Treads 1 | 1 . . Leg . | . . . Wheel 5 | 1 1 3 Hover . | . . . Flight . | . . . Utility 6 | 1 2 3 Device . | . . . Storage 2 | 1 1 . Processor . | . . . Hackware . | . . . Protection 4 | . 1 3 Artifact . | . . . Weapon 28 | 2 5 21 Energy Gun 12 | 1 5 6 Energy Cannon . | . . . Ballistic Gun 8 | 1 . 7 Ballistic Cannon . | . . . Launcher . | . . . Special Weapon 1 | . . 1 Impact Weapon . | . . . Slashing Weapon 7 | . . 7 Piercing Weapon . | . . . Special Melee Weapon . | . . . Unidentified Prototypes . | . . . Parts Lost 14 | . 1 13 Power 2 | . . 2 Propulsion 4 | . . 4 Utility 3 | . . 3 Weapon 5 | . 1 4 Highest Loss Streak 4 | . 1 4 To Critical Strikes 1 | . . 1 Average Slot Usage (%) 85 | . 96 82 Engine 12 | . 14 11 Treads 4 | . 14 1 Wheel 22 | . 14 25 Storage 6 | . 14 3 Protection 11 | . 11 11 Energy Gun 12 | . 27 8 Ballistic Gun 10 | . . 13 Slashing Weapon 4 | . . 6 Naked Turns . | . . . Heaviest Build 30 | 12 22 30 Greatest Support 32 | 10 10 32 Greatest Overweight (x) 2 | 1 2 2 Average Overweight (x) . | . 1 . Largest Inventory Capacity 10 | 8 10 10 Average Capacity 7 | 6 9 6 Most Carried 10 | 4 10 10 Average Carried 6 | 2 9 5 Final Capacity 10 | 8 10 5 Final Carried 10 | 4 10 3 Class Distribution -------------------- 100% | Mutant Dominant Class ---------------- Mutant | -10/Materials Mutant | -10/Subcaves Resources | -11 -10 -10 ----------- Run | Jun Mat Sub Matter Collected 722 | 173 162 387 Remotely . | . . . Salvage Created 1233 | . 570 663 Parts 79 | . 43 36 Haulers Intercepted 1 | . 1 . Recyclers Shooed . | . . . Parts Field Recycled . | . . . Retrieved Matter . | . . . Parts Self-Destructed 11 | . . 11 Prevented . | . . . Kills | -11 -10 -10 ------- Run | Jun Mat Sub Combat Hostiles Destroyed 27 | . 13 14 Melee 2 | . . 2 Guns 22 | . 11 11 AOE 1 | . 1 . Classes Destroyed 7 | . 5 2 Worker 2 | . 2 . Builder 2 | . 2 . Hauler 1 | . 1 . Swarmer 8 | . 6 2 Grunt 7 | . 7 . Sentry 1 | . . 1 Subdweller 11 | . . 11 Best Kill Streak 5 | . 5 2 Combat Bots Only 5 | . 5 2 Max Kills in Single Turn 2 | . 2 1 Gunslinging 1 | . 1 . Exploded 1 | . 1 . Melee 1 | . . 1 Uniques/NPCs Destroyed . | . . . Combat | -11 -10 -10 -------- Run | Jun Mat Sub Damage Taken 1893 | . 425 1468 Core 267 | . 75 192 Absorbed by Shields . | . . . Core Remaining (%) 100 | 100 . . Volleys Fired 93 | . 36 57 Largest 2 | . 2 2 Hottest 88 | . 80 88 Shots Fired 180 | . 72 108 Gun 180 | . 72 108 Cannon . | . . . Launcher . | . . . Special . | . . . Kinetic 65 | . . 65 Thermal 31 | . . 31 Explosive . | . . . Electromagnetic 84 | . 72 12 Robot Hit Streak 13 | . 13 11 Robot Miss Streak 5 | . 5 2 Penetration Max . | . . . Secondary Targets 2 | . 2 . Max Gunslinging Chain 1 | . 1 . Shots Hit Robots 127 | . 46 81 Core Hits 46 | . 21 25 Critical Kills . | . . . Critical Parts Destroyed . | . . . Critical Strikes 1 | . 1 . Corrupt 1 | . 1 . Melee Attacks 55 | . . 55 Impact . | . . . Slashing 55 | . . 55 Piercing . | . . . Sneak Attacks 1 | . . 1 Combat Hostiles . | . . . Follow-up Attacks . | . . . Damage Inflicted 1971 | . 728 1243 Guns 1721 | . 641 1080 Cannons . | . . . Explosions 84 | . 84 . Melee 163 | . . 163 Ramming 3 | . 3 . Kinetic 609 | . . 609 Thermal 441 | . 84 357 Explosive . | . . . Electromagnetic 755 | . 641 114 Impact . | . . . Slashing 163 | . . 163 Piercing . | . . . Highest Corruption 8 | . . 8 Average Corruption 8 | . . 8 Corruption Purged . | . . . Corruption Blocked . | . . . Effects 5 | . . 5 Message Errors 1 | . . 1 Heat Flow Errors 1 | . . 1 Data Loss (minor) 1 | . . 1 Data Loss (major) 2 | . . 2 Overload Shots . | . . . Overflow Damage . | . . . Projectiles . | . . . Explosions . | . . . Melee . | . . . Knockbacks . | . . . Impact . | . . . Kinetic . | . . . Secondary . | . . . Self-Inflicted Damage 33 | . 33 . Shots 1 | . 1 . Rammed 1 | . 1 . Targets Rammed 1 | . 1 . Kicked . | . . . Crushed . | . . . Highest Temperature 287 | . 216 287 Average Temperature 66 | . 81 33 Received Heat Transfer 669 | . 96 573 Siege Activations . | . . . Robots Corrupted 2 | . 1 1 Combat Hostiles 2 | . 1 1 Parts Fried 8 | . 5 3 Impact Corruptions . | . . . Robots Melted . | . . . Combat Hostiles . | . . . Parts Melted 3 | . 1 2 Heat Transferred 575 | . 150 425 Parts Sabotaged . | . . . Parts Stolen . | . . . Parts Stripped . | . . . Power Chain Reactions 2 | . 2 . Missiles Intercepted . | . . . Alert | -11 -10 -10 ------- Run | Jun Mat Sub Peak Influence 280 | . 280 . Initial . | . . . Average 96 | . 104 . Maximum Alert Level 1 | . 1 . Low Security (%) 84 | 100 83 . Level 1 15 | . 16 . Level 2 . | . . . Level 3 . | . . . Level 4 . | . . . Level 5 . | . . . High Security . | . . . Max Security . | . . . Squads Dispatched 2 | . 2 . Investigation . | . . . Extermination . | . . . Reinforcement 2 | . 2 . Assault . | . . . Garrison . | . . . Intercept . | . . . Searches Triggered . | . . . Construction Impeded . | . . . Haulers Reinforced . | . . . Active Scanning Responses . | . . . Cargo Convoy Interrupts . | . . . Stealth | -11 -10 -10 --------- Run | Jun Mat Sub Distress Signals 1 | . 1 . Communications Jammed . | . . . Distress Signals . | . . . Times Spotted 47 | . 21 26 Peak Tracking Total 7 | . 7 6 Tactical Retreats 7 | . 1 6 Traps | -11 -10 -10 ------- Run | Jun Mat Sub Traps Triggered 1 | . 1 . Indirectly . | . . . Trap Hack Attempts . | . . . Triggered . | . . . Disarmed . | . . . Reprogrammed . | . . . Reused . | . . . Traps Extracted . | . . . Installed . | . . . Triggered . | . . . Machines | -11 -10 -10 ---------- Run | Jun Mat Sub Machines Disabled 2 | . 2 . Max in Single Turn 2 | . 2 . Machines Repaired . | . . . Machines Sabotaged . | . . . Overloaded Fab Kills . | . . . Hacking | -11 -10 -10 --------- Run | Jun Mat Sub Machines Accessed 3 | . 2 1 Terminals 2 | . 2 . Fabricators . | . . . Repair Stations . | . . . Recycling Units . | . . . Scanalyzers . | . . . Garrison Access . | . . . Total Hacks 9 | . 7 2 Successful 6 | . 4 2 Failed 3 | . 3 . Catastrophic . | . . . Database Lockouts . | . . . Manual 6 | . 6 . Terminals 7 | . 7 . Fabricators . | . . . Repair Stations . | . . . Recycling Units . | . . . Scanalyzers . | . . . Garrison Access . | . . . Terminal Hacks 5 | . 3 2 Record 2 | . . 2 Robot Analysis 2 | . 2 . Prototype ID Bank 1 | . 1 . Fabricator Hacks . | . . . Repair Station Hacks . | . . . Recycling Unit Hacks . | . . . Scanalyzer . | . . . Garrison Access Hacks . | . . . Unauthorized Hacks 1 | . 1 . Terminals 1 | . 1 . Botnet 1 | . 1 . Fabricators . | . . . Repair Stations . | . . . Recycling Units . | . . . Scanalyzers . | . . . Garrison Access . | . . . Data Cores Recovered . | . . . Used . | . . . Hacking Detections 2 | . 2 . Full Trace Events . | . . . Feedback Events . | . . . Feedback Blocked . | . . . Robot Schematics Acquired . | . . . Robots Built . | . . . Authchips . | . . . Time . | . . . Total Robot Build Rating . | . . . Part Schematics Acquired . | . . . Parts Built . | . . . Authchips . | . . . Time . | . . . Total Part Build Rating . | . . . Parts Repaired . | . . . Time . | . . . Parts Recycled . | . . . Recycled Matter . | . . . Retrieved Matter . | . . . Retrieved Components . | . . . Parts Scanalyzed . | . . . Part Schematics Acquired . | . . . Parts Damaged . | . . . Bothacking | -11 -10 -10 ------------ Run | Jun Mat Sub Used RIF Installer . | . . . Robots Hacked . | . . . Non-combat . | . . . Combat . | . . . Robot Hacks Applied . | . . . Relay Couplers Released . | . . . Fabnet Peak Effective % . | . . . Robots Rewired . | . . . Allies Hacked . | . . . Hacks Repelled . | . . . Allies | -11 -10 -10 -------- Run | Jun Mat Sub Total Allies . | . . . Largest Group . | . . . Highest-Rated Group . | . . . Highest-Rated Ally . | . . . Total Orders . | . . . Ally Attacks . | . . . Total Damage . | . . . Kills . | . . . Allies Corrupted . | . . . Allies Melted . | . . . Intel | -11 -10 -10 ------- Run | Jun Mat Sub Robot Analysis Total 2 | . 2 . Derelict Logs Recovered . | . . . Drone Launches . | . . . Drone Recoveries . | . . . Exploration | -11 -10 -10 ------------- Run | Jun Mat Sub Turns Passed 2917 | 53 687 2177 Spaces Moved 2256 | 44 466 1746 Core 3 | 3 . . Treads . | . . . Legs . | . . . Wheels 2253 | 41 466 1746 Hover . | . . . Flight . | . . . Fastest Speed 50 | 50 80 80 Average Speed 100 | 84 105 99 Slowest Speed 110 | 95 110 110 Overloaded Moves . | . . . Propulsion Burnouts . | . . . Robots Hopped . | . . . Cave-ins Triggered 1 | . . 1 Exploration Rate (%) 53 | 3 78 80 Regions Visited 2 Branch Regions 1 Pre-discovered Areas . | . . . Known Exits Taken . | . . . Unknown Exits Taken 2 | 1 1 . Scrap Searched 18 | . . 18 Spaces Dug 26 | . . 26 Terrain Destroyed 30 | . 3 27 Melee 19 | . . 19 Projectile 8 | . . 8 AOE 3 | . 3 . Terrain Rammed . | . . . Walls Destroyed . | . . . Machines Disabled . | . . . Actions | -11 -10 -10 --------- Run | Jun Mat Sub Total 2628 | 56 591 1981 Wait 137 | 3 62 72 Move 2254 | 43 465 1746 Hop . | . . . Pick Up 20 | 4 8 8 Fast Attach 15 | 6 4 5 Attach 11 | . 1 10 Detach 4 | . 3 1 Swap 17 | . 4 13 Drop 17 | . 7 10 Fire 93 | . 36 57 Melee 55 | . . 55 Ram 1 | . 1 . Kick . | . . . Crush . | . . . Escape Stasis . | . . . Rewire . | . . . Trap . | . . . Miscellaneous 4 | . . 4 Route ------- -11/Junkyard -10/Materials (discovered 4 exits: [*Mat x2] / [*Min] / *Sub) -10/Subcaves (discovered 2 exits: [*Mat] / [*Mat]) History --------- Turn | Location | Event 19 | -11/Junkyard | Discovered new exit (range 14) 54 | -11/Junkyard | Entered Materials 137 | -10/Materials | Discovered new exit (range 7) 299 | -10/Materials | Discovered new exit (range 10) 312 | -10/Materials | Build established: Mutant 582 | -10/Materials | Discovered new exit (range 9) 738 | -10/Materials | Discovered new exit (range 5) 741 | -10/Materials | Entered Subcaves 743 | -10/Subcaves | Ambushed by Subdwellers from Twisted Machinery 814 | -10/Subcaves | Lost 4 parts (1u3w) 936 | -10/Subcaves | Core integrity fell below 50% 1116 | -10/Subcaves | A swath of the cavern ceiling suddenly collapsed 1565 | -10/Subcaves | Discovered new exit (range 9) 1753 | -10/Subcaves | Disturbed a concealed Subdweller 2033 | -10/Subcaves | Visited Clippyterm 2616 | -10/Subcaves | Core integrity fell below 20% 2769 | -10/Subcaves | Shifting Twisted Machinery released Sub. Power Source 2770 | -10/Subcaves | Discovered new exit (range 12) 2812 | -10/Subcaves | Crushed by falling debris 2915 | -10/Subcaves | Ambushed by Subdwellers from Twisted Machinery 2918 | -10/Subcaves | Destroyed by MJ-M8Q(R) with Subdweller Laser Last Messages --------------- 02770_ EXIT=FOUND 02803_ Searching scrap... 02803_ Found Sub. Machine Gun. 02803_ Found Battle Rifle. 02803_ Found 23 Matter. 02804_ Acquired 15 matter. 02812_ The unstable cave ceiling collapses. 02812_ Crushed by falling debris. 02812_ Com. Wheel destroyed. 02812_ System corrupted by crushing effect (+5). 02812_ Mining Claw destroyed. 02812_ System corrupted by crushing effect (+3). 02815_ HHU6QENFVLSRRBQ PZ5%OFPCTPS|H4IVIW# V1D 02838_ The unstable cave ceiling collapses. 02845_ System corrupted: Component data lost. 02861_ The unstable cave ceiling collapses. 02879_ System corrupted: Substantial component data lost. 02913_ System corrupted: Heat flow error (+230). 02915_ 5A-0ZN(R) emerges from the Twisted Machinery. 02915_ Ion Engine destroyed. Map ----- +----------------------------------------------------+ | ?????????????????????????????????????????????????? | | ?????????????????????????????????????????????????? | | ?????????????????????????????????????????????????? | | ?????????????????????????????????????????????????? | | ?????????????????????????????????????????????????? | | ?????????????????????????????????????????????????? | | ?????????????????????????????????????????????????? | | ?????????????????????????????????????????????????? | | ?????????????????????????????????????????????????? | | ?????????????????????????????????????????????????? | | ?????????????????????????????????????????????????? | | ?????????????????????????????????????????????????? | | ?????????????????????????????????????????????????? | | ?????????????????????????????????????????????????? | | ?????????????????????????????????????????????????? | | ?????????????????????????????????????????????????? | | ?????????????????????????????????????????????????? | | ?????????????????????????????????????????????????? | | ?????????????????????????????????????????????????? | | ?????????????????????????????????????????????????? | | ??????????????####??###??????####????????????????? | | ??????######### "#### ###??## #????????????????? | | ?????## ## " " ### " #????????????????? | | ?????# """"" """"" #????????????????? | | ?????# # ###"" ## #### """"#????????????????? | | ###??# ##### " ####??## @ """""????????????????? | | #### ## ##"" ##?????### """ ???????????????? | | # * #???????# R"" "??????????????? | | ## ## # """?????? " ""##??????????????? | | ?###### ## < ?""" R ##???????????????? | | ?????##" ####" ## ##?? " #????????????????? | | ?????# " #??## ##???????# ## ##????????????????? | | ?????# " ##??####????????###? #?????????????????? | | ?????# "" #???###???????????? #?????????????????? | | ###??# "" #?? ?????????????? ?????????????????? | | # ##?# ##?# #???????????????###????????????????? | | ### #### ##?????????????????????????????????? | | ## # #?????????????????????????????????? | | #?????????????????????????????????? | | # ## #?????????????????????????????????? | | ### ##????????????????????????????????????? | | ##? ?????????????????????????????????????? | | ### ##?## ????????????????????????????????????? | | ##?# #???### #???????????????????????????????????? | | #??###??????##???????????????????????????????????? | | #????????????????????????????????????????????????? | | ?????????????????????????????????????????????????? | | ?????????????????????????????????????????????????? | | ?????????????????????????????????????????????????? | | ?????????????????????????????????????????????????? | +----------------------------------------------------+ Best States ------------- Heat Dissipation 25 Energy Generation 10 Energy Capacity 250 Matter Stores 300 Matter Capacity 300 Sight Range 16 Terrain Scan Density 10 Armor Coverage 800 Evasion (%) 44 Recoil Reduction 1 Item Schematics ----------------- None Robot Schematics ------------------ None Fabricated ------------ Nothing Alien Tech Used ----------------- None Achievements -------------- None Challenges ------------ None Game ------ Seed QuantumDrainedTube Manual? 1 Play Time 00:22:06 Cumulative 340.7 hours Start 2023.06.25 @ 08:43:18 End 2023.06.25 @ 09:05:04 Sessions 1 Manual Loads 0 Difficulty Rogue Special Mode None Game No. 176 Rogue 176 Adventurer 0 Explorer 0 Win Type - Total 11 Types 6/0/3/0/0/0/2/0/0 Lore% 82 Gallery% 87 Achievement% 78 Wizard Run 0 Options --------- ASCII 0 Keyboard 1 Movement Numpad Keybinds 0 Fullscreen 2 Font 12/Smallcaps Map View 83x54 Tactical HUD 1 Map Filters NONE Filters NONE Steam 1 RUN: 8660d19e-12c6-4563-9494-cb72ebb4b869